Cogmind - Beta 16 @@@ ROGUE MODE // 2026.01.01 @ 18:13:56 Player: FrigidRock Result: Smashed by cave-in Performance ------------- Evolutions (8) 4000 Regions Visited (26) 5200 Robots Destroyed (310) 1550 Value Destroyed (15366) 15366 Prototype IDs (43) 860 Alien Tech Used (1) 200 Bonus (7095) 7095 TOTAL SCORE: 34271 Bonus ------- High Alert Combat Kills 1261 Follower Combat Kills 763 Met Warlord at Base 500 MAIN.C Attacked Warlord 500 Met R17 at Cetus 500 Met R17 at Research 2000 Met Warlord at Research 2000 Friendly Fire -429 Cogmind --------- Core Integrity 0/1450 Matter 565/700 Energy 100/100 System Corruption 18% Temperature Cool (7) Movement Walking (97) Location -2/Protoforge Parts ------- > --- POWER (2) -------- (None) > --- PROPULSION (5) --- Enhanced Biometal Leg Biometal Exoskeleton > --- UTILITY (12) ----- Armored Scrap Engine Advanced Heat Sink Advanced Heat Sink Advanced Matter Compressor Advanced Terrain Scan Processor Experimental Salvage Targeting Computer Graphene Brace Improved System Shield Crosscalibrator > --- WEAPON (4) ------- (None) > --- INVENTORY (5) ---- Compact HERF Cannon Compact Linear Accelerator Peak State ------------ > --- POWER ------------ Graviton Reactor Quantum Reactor > --- PROPULSION ------- Biometal Exoskeleton Combat Antigrav System > --- UTILITY ---------- Armored Scrap Engine Advanced Heat Sink Advanced Cooling System Advanced Signal Interpreter Advanced Terrain Scanner Advanced Terrain Scan Processor Advanced Targeting Computer Experimental Reaction Control System Advanced Phase Shifter Graphene Brace System Purifier > --- WEAPON ----------- Compact HERF Cannon Enhanced Nova Cannon Core Cannon > --- INVENTORY -------- Advanced Matter Compressor Improved System Shield Compact Linear Accelerator Micro-nuke Launcher [Rating: 189] Favorites ----------- Power Constructs Engine Deuterium Engine Power Core Light Nuclear Core Reactor Constructs Propulsion Constructs Treads Light Treads Leg Constructs Wheel Armored Wheel Hover Unit Combat Antigrav System Flight Unit Improved Cesium-ion Thruster Utility Armored Scrap Engine Device Armored Scrap Engine Storage Large Storage Unit Processor Advanced Targeting Computer Hackware Improved System Shield Protection Centrium Medium Armor Plating Weapon Constructs Energy Gun Advanced Beam Rifle Energy Cannon Constructs Ballistic Gun Advanced KE Penetrator Ballistic Cannon Compact Linear Accelerator Launcher Advanced EMP Blaster Impact Weapon Mace Slashing Weapon Phasing Sabre Piercing Weapon Makeshift Spear Special Melee Weapon Improved Datajack Build | -11 -10 -10 -8 -8 -8 -6 -6 -6 -6 -6 -6 -6 -5 -5 -5 -5 -4 -4 -4 -4 -4 -4 -3 -2 -2 -2 ------- Run | Yrd Mat Sub Mat Sto Rec Fac Was Fac Ext Cet Arc Hub Fac Upp Upp War Pro Fac Was Fac Upp Upp Res Res Qua Frg Slots Evolved 16 | . . . 4 . . 4 . . . . . . 2 . . . . 2 . . . . 2 2 . . Power 1 | . . . . . . 1 . . . . . . . . . . . . . . . . . . . . Propulsion 3 | . . . 1 . . 1 . . . . . . 1 . . . . . . . . . . . . . Utility 10 | . . . 2 . . 2 . . . . . . 1 . . . . 2 . . . . 2 1 . . Weapon 2 | . . . 1 . . . . . . . . . . . . . . . . . . . . 1 . . Parts Attached 246 | 7 10 2 34 8 3 4 . 12 14 14 2 5 6 . . 12 5 15 . 9 5 1 45 17 4 12 Power 28 | 1 1 . 5 1 . 2 . 3 1 . . . . . . 1 1 2 . 2 1 . 5 2 . . Engine 8 | 1 . . 3 1 . . . 2 . . . . . . . . . . . . 1 . . . . . Core 11 | . 1 . 2 . . 2 . 1 1 . . . . . . . 1 1 . 2 . . . . . . Reactor 9 | . . . . . . . . . . . . . . . . 1 . 1 . . . . 5 2 . . Propulsion 41 | 2 4 . 9 2 1 1 . 1 1 3 . . . . . 3 . 1 . . . . 7 4 2 . Treads 7 | 2 2 . . . . . . . . 3 . . . . . . . . . . . . . . . . Leg 28 | . 2 . 7 1 1 . . 1 1 . . . . . . 3 . 1 . . . . 7 2 2 . Wheel 2 | . . . 2 . . . . . . . . . . . . . . . . . . . . . . . Hover 2 | . . . . 1 . . . . . . . . . . . . . . . . . . . 1 . . Flight 2 | . . . . . . 1 . . . . . . . . . . . . . . . . . 1 . . Utility 100 | 2 2 1 7 2 1 1 . 7 5 4 2 5 3 . . 5 2 8 . 7 2 1 17 9 . 7 Device 61 | 1 . . 4 . 1 . . 4 3 1 1 3 2 . . 2 1 3 . 6 2 1 15 7 . 4 Storage 5 | 1 1 . . . . . . 1 . . . . . . . . . 1 . 1 . . . . . . Processor 14 | . . . 1 1 . . . 2 . . . 1 1 . . . . 4 . . . . 1 2 . 1 Hackware 1 | . . . . . . . . . . . . . . . . . . . . . . . . . . 1 Protection 19 | . 1 1 2 1 . 1 . . 2 3 1 1 . . . 3 1 . . . . . 1 . . 1 Artifact . | . . . . . . . . . . . . . . . . . . . . . . . . . . . Weapon 77 | 2 3 1 13 3 1 . . 1 7 7 . . 3 . . 3 2 4 . . 2 . 16 2 2 5 Energy Gun 25 | 2 1 1 6 . . . . . 1 2 . . 1 . . 1 1 1 . . . . 8 . . . Energy Cannon 14 | . . . 1 1 . . . 1 1 . . . 1 . . . . 3 . . 1 . 3 1 1 . Ballistic Gun 12 | . 1 . 4 . . . . . 2 3 . . 1 . . . . . . . . . 1 . . . Ballistic Cannon 8 | . 1 . . . . . . . 1 . . . . . . 1 . . . . 1 . 3 1 . . Launcher 11 | . . . . 2 1 . . . 1 . . . . . . . 1 . . . . . . . 1 5 Special Weapon . | . . . . . . . . . . . . . . . . . . . . . . . . . . . Impact Weapon 2 | . . . 2 . . . . . . . . . . . . . . . . . . . . . . . Slashing Weapon 3 | . . . . . . . . . 1 1 . . . . . . . . . . . . 1 . . . Piercing Weapon 1 | . . . . . . . . . . . . . . . . 1 . . . . . . . . . . Special Melee Weapon 1 | . . . . . . . . . . 1 . . . . . . . . . . . . . . . . Unidentified Prototypes 36 | . . . 5 2 1 1 . 1 . 4 . . . . . 2 . 1 . 1 . . 8 1 2 7 Parts Lost 103 | . 4 2 8 6 . 2 1 5 5 3 . 5 1 . . 8 6 9 1 2 . 13 5 4 3 10 Power 21 | . 1 . 2 . . 1 . 2 1 1 . 1 . . . 2 1 2 . 1 . 3 1 . . 2 Propulsion 19 | . 1 1 1 1 . . . . 2 . . 2 . . . 2 2 3 . 1 . 1 2 . . . Utility 38 | . . 1 3 3 . . . 1 1 . . 1 . . . 3 3 2 1 . . 5 2 4 3 5 Weapon 25 | . 2 . 2 2 . 1 1 2 1 2 . 1 1 . . 1 . 2 . . . 4 . . . 3 Highest Loss Streak 9 | . 3 2 2 4 . 2 1 1 3 2 . 3 1 . . 5 3 9 1 1 . 5 2 3 2 6 To Critical Strikes 2 | . . . . . . . . . 1 . . . . . . 1 . . . . . . . . . . Average Backups 10 | 3 11 14 13 12 14 12 13 8 11 13 13 13 11 14 15 14 9 10 5 4 4 4 4 4 4 4 Power . | . 1 2 1 2 2 2 2 . . 1 1 1 1 1 1 . . . 1 . . . . . . . Propulsion 1 | 2 4 4 2 1 . . 1 1 1 1 1 . . . . . . . . . . . . . . . Utility 4 | . 3 3 3 4 7 6 7 4 5 5 5 6 5 7 8 6 5 5 1 2 3 3 2 3 2 1 Weapon 3 | . 1 3 4 3 2 2 2 1 3 4 5 5 5 6 6 7 2 4 3 2 1 . 1 . 2 2 Tool/Special . | . . . . . . . . . . . . . . . . . . . . . . . . . . . Unused Backups 26 | . . . 9 2 4 . . 2 4 1 . . . . . 1 . 1 . . 1 . 1 . . . Power 1 | . . . 1 . . . . . . . . . . . . . . . . . . . . . . . Propulsion 1 | . . . 1 . . . . . . . . . . . . . . . . . . . . . . . Utility 13 | . . . 1 . 3 . . 2 2 1 . . . . . 1 . 1 . . 1 . 1 . . . Weapon 10 | . . . 5 2 1 . . . 2 . . . . . . . . . . . . . . . . . Tool/Special 1 | . . . 1 . . . . . . . . . . . . . . . . . . . . . . . Average Slot Usage (%) 74 | . 99 99 93 97 89 79 63 60 66 71 80 72 62 64 64 58 74 70 33 51 65 61 70 77 73 67 Engine 3 | . 11 14 4 5 9 2 . 6 5 . . . . 5 5 3 . . . . . 3 . . . . Core 2 | . 2 . 3 3 . 6 6 2 2 4 . . 3 . . . 3 1 . 4 9 2 . . . . Reactor 2 | . . . . . . . . . . . 6 6 . . . . 6 7 . 2 . 1 7 7 8 8 Treads 2 | . 19 28 . . . . . . . 4 20 13 2 . . . . 1 . . . . . . . . Leg 9 | . 7 . 17 24 27 24 20 7 7 9 . . 2 5 5 5 12 10 5 5 . . 9 4 4 8 Device 17 | . 8 . 14 10 9 12 9 16 14 14 13 16 17 22 23 16 20 14 12 21 25 24 25 37 29 22 Storage 5 | . 14 14 9 9 9 6 6 6 6 6 6 6 5 5 5 5 5 4 . . . . . . . . Processor 6 | . . . . 6 9 6 6 6 8 6 3 5 5 5 5 5 . 10 15 12 10 10 12 5 13 11 Protection 3 | . 5 13 6 8 4 5 . . 2 4 8 3 4 . . 4 5 4 . . . . . . . 1 Energy Gun 5 | . 17 14 14 10 7 . 6 6 1 1 6 11 1 2 5 6 4 4 . . . . 4 . . . Energy Cannon 3 | . . . . 8 . 2 . 1 6 3 . . 1 . . . . 5 . 3 7 8 2 5 12 8 Ballistic Gun 4 | . 1 . 8 7 6 8 6 3 3 11 13 7 9 14 11 3 2 . . . . . . 1 . . Ballistic Cannon 2 | . 8 14 . . . . . . 3 . . . 1 . . . . . . . . . 2 8 1 . Peak Build Rating 189 | 7 9 8 37 34 48 63 56 71 81 110 110 110 117 103 101 124 124 124 51 120 127 125 148 181 189 189 Average Rating 84 | 4 7 7 28 31 38 55 51 59 72 92 109 105 99 98 100 96 102 107 49 90 123 114 113 167 178 169 On Entrance 78 | . 7 8 8 34 32 43 51 56 61 80 110 110 90 101 100 101 124 96 51 48 120 125 68 148 179 165 Avg Prop Armor Cover (%) 6 | . . . 10 9 . . . . . 4 4 4 8 . . . 5 11 10 11 . . 3 3 1 3 Naked Turns . | . . . . . . . . . . . . . . . . . . . . . . . . . . . Heaviest Build 95 | 14 32 33 41 48 44 57 38 51 74 68 70 70 61 56 50 87 88 95 3 59 60 64 79 89 89 86 Greatest Support 160 | 40 40 40 16 42 42 51 46 52 79 160 104 124 104 33 33 119 119 101 3 94 94 94 117 129 158 134 Greatest Overweight (x) 3 | . 1 . 3 3 1 1 . 1 2 1 . 2 2 1 1 3 2 2 . 2 . 1 1 2 . . Average Overweight (x) . | . . . 2 1 . . . . . . . . . 1 1 1 . . . . . . . . . . Largest Inventory Capacity 15 | 8 15 15 15 15 15 15 15 15 15 15 15 15 15 15 15 15 15 15 5 5 5 5 5 5 5 5 Average Capacity 12 | 6 14 15 15 15 15 15 15 10 13 15 15 15 15 15 15 15 15 14 5 5 5 5 5 5 5 5 Most Carried 15 | 5 15 15 15 15 15 14 14 15 15 15 15 15 14 15 15 15 15 15 5 5 5 5 5 5 5 5 Average Carried 10 | 3 11 14 13 12 14 12 13 8 11 14 14 14 11 14 15 14 10 10 5 4 4 4 4 4 4 4 Final Capacity 15 | 8 15 15 15 15 15 15 15 10 15 15 15 15 15 15 15 15 15 5 5 5 5 5 5 5 5 5 Final Carried 15 | 5 15 15 14 13 14 14 13 10 14 15 15 12 14 15 15 13 7 5 5 5 5 3 5 3 5 2 Scrap Engine Consumption 419 | . . . . . 15 19 2 40 61 22 1 5 43 5 2 29 9 8 4 15 1 7 81 39 11 . Constructs Created 26 | . . . . . 1 4 . 4 3 4 . . 1 . . 2 . . . 1 . 2 1 2 . 1 Constructs Modified 125 | . . . . . . 3 1 4 24 11 . 2 19 2 1 3 9 1 . 5 . 2 6 26 3 3 Class Distribution -------------------- 27% | Construct 21% | Mutant 9% | Scavenger-Tank 7% | Gunner 5% | Tank 5% | Scavenger-Skirmisher 4% | Scavenger-Mutant 4% | Commander-Mutant 4% | Scavenger-Construct 3% | Commander-Construct Dominant Class ---------------- Mutant | -10/Materials Mutant | -10/Subcaves Tank | -8/Materials Gunner | -8/Storage Commander-Mutant | -8/Recycling Commander-Mutant | -6/Factory Mutant | -6/Waste Construct | -6/Factory Construct | -6/Extension Construct | -6/Cetus Scavenger-Construct | -6/Archives Construct | -6/Hub_04(d) Construct | -5/Factory Construct | -5/Upper Caves Construct | -5/Upper Caves Construct | -5/Warlord Scavenger-Mutant | -4/Proximity Caves Scavenger-Mutant | -4/Factory Mutant | -4/Waste Mutant | -4/Factory Mutant | -4/Upper Caves Mutant | -4/Upper Caves Scavenger-Skirmisher | -3/Research Scavenger-Tank | -2/Research Scavenger-Skirmisher | -2/Quarantine Scavenger-Tank | -2/Protoforge Resources | -11 -10 -10 -8 -8 -8 -6 -6 -6 -6 -6 -6 -6 -5 -5 -5 -5 -4 -4 -4 -4 -4 -4 -3 -2 -2 -2 ----------- Run | Yrd Mat Sub Mat Sto Rec Fac Was Fac Ext Cet Arc Hub Fac Upp Upp War Pro Fac Was Fac Upp Upp Res Res Qua Frg Matter Collected 9917 | 270 370 74 813 240 184 159 . 429 1180 742 251 275 936 181 161 225 850 163 . 148 515 47 682 770 58 194 Remotely 160 | . . . . . . . . 95 . . . . . . . . . . . . . . 65 . . . Salvage Created 15589 | 112 651 65 1366 841 407 731 239 612 2505 619 286 389 1434 197 146 . 693 363 . 236 496 480 487 442 573 1219 Parts 664 | 5 39 2 58 63 16 32 5 23 100 31 12 25 75 4 4 . 30 13 . 8 12 8 16 8 30 45 Haulers Intercepted 6 | . 1 . 3 2 . . . . . . . . . . . . . . . . . . . . . . Recyclers Shooed 6 | . . . . . . . . . 4 . . . 2 . . . . . . . . . . . . . Parts Field Recycled . | . . . . . . . . . . . . . . . . . . . . . . . . . . . Retrieved Matter . | . . . . . . . . . . . . . . . . . . . . . . . . . . . Parts Self-Destructed 45 | . . . . . . . . . . . . . . 2 3 . 20 . . . 11 9 . . . . Prevented 1 | . . . . . . . . . . . . . . . . . . . . . . 1 . . . . Parts Restored . | . . . . . . . . . . . . . . . . . . . . . . . . . . . Kills | -11 -10 -10 -8 -8 -8 -6 -6 -6 -6 -6 -6 -6 -5 -5 -5 -5 -4 -4 -4 -4 -4 -4 -3 -2 -2 -2 ------- Run | Yrd Mat Sub Mat Sto Rec Fac Was Fac Ext Cet Arc Hub Fac Upp Upp War Pro Fac Was Fac Upp Upp Res Res Qua Frg Combat Hostiles Destroyed 258 | . 18 2 22 18 8 9 1 8 39 10 4 5 20 2 4 . 17 5 . 3 4 6 7 10 11 25 Melee 4 | . . . . . . . . . . . . . . . . . 4 . . . . . . . . . Guns 99 | . 11 2 14 12 5 2 . . 7 10 4 5 16 2 3 . 4 . . . . . 2 . . . Cannons 93 | . 5 . 2 5 . 1 . 1 25 . . . 4 . . . 5 2 . 3 3 5 5 9 6 12 AOE 44 | . 2 . 4 1 3 4 1 6 . . . . . . 1 . 3 2 . . . . . . 5 12 Classes Destroyed 22 | 2 4 1 4 . 2 . 1 1 4 . . . . . . . . . . . . . . 2 . 1 Worker 9 | . . . 1 1 . 3 . . 2 . . 1 . . . . . 1 . . . . . . . . Builder 6 | . . . 1 1 . . . . 1 . . . . . . . . 1 . . . . 1 . 1 . Tunneler 2 | 1 . . 1 . . . . . . . . . . . . . . . . . . . . . . . Hauler 6 | . 1 . 3 2 . . . . . . . . . . . . . . . . . . . . . . Recycler 10 | 1 . . 1 . . 1 . 1 2 . . . 2 . . . . . . . . . 1 . 1 . Operator 2 | . . . . . . . . 1 . . . 1 . . . . . . . . . . . . . . Watcher 15 | . 1 . 2 1 . . . . 1 1 . 3 2 . . . . . . . . . . . . 4 Swarmer 53 | . 4 . 3 7 . . . . 9 3 . . 4 . 4 . 7 . . . . 2 . . 5 5 Saboteur 2 | . . . . . . . . . 1 . . . . . . . . . . . . . . . . 1 Grunt 99 | . 14 . 12 4 1 7 . 6 15 . . 1 9 1 . . 6 1 . . 3 3 4 2 4 6 Brawler 3 | . . . . . 1 . . . 1 . . . . . . . . . . . 1 . . . . . Duelist 5 | . . . . . . . . . 2 . . 1 . . . . . . . . . 1 . 1 . . Protector 2 | . . . . . . . . . 1 . . . . . . . . . . . . . . . . 1 Sentry 34 | . . . 6 7 . . . . 6 . 4 2 1 . . . 1 . . 3 . . 2 . . 2 Hunter 15 | . . . 1 . . 1 . 1 3 . . . 1 . . . 2 3 . . . . . 2 1 . Programmer 12 | . . . . . 1 1 . 1 . . . 1 5 1 . . . 1 . . . . . . 1 . Behemoth 4 | . . . . . . . . . 1 . . . . . . . 1 . . . . . 1 . . 1 Compactor 1 | . . . . . . . 1 . . . . . . . . . . . . . . . . . . . Cetus Guard 7 | . . . . . . . . . . 7 . . . . . . . . . . . . . . . . Hotshot 4 | . . . . . . . . . . . . . . . . . . . . . . . . . . 4 Decapitator 3 | . . . . . . . . . . . . . . . . . . . . . . . . . . 3 Immortal 2 | . . . . . . . . . . . . . . . . . . . . . . . . . . 2 Striker 4 | . . . . . . . . . . . . . . . . . . . . . . . . 4 . . Subdweller 7 | . . 2 . . 5 . . . . . . . . . . . . . . . . . . . . . Decomposer 2 | . . . . . . . . . . . . . . . . . . . . . 2 . . . . . Packrat 2 | . . . . . . . . . . . . . . . . . . . . . 2 . . . . . Thug 1 | . . . . . . . . . 1 . . . . . . . . . . . . . . . . . Savage 1 | . . . . . . . . . 1 . . . . . . . . . . . . . . . . . Troll 1 | . . . . . . . . . . . . . . . . . . . . . . . . 1 . . Best Kill Streak 11 | 1 4 1 6 6 3 6 1 3 11 3 2 2 4 1 4 . 4 4 . 1 2 2 3 2 9 6 Combat Bots Only 9 | . 4 1 5 6 3 5 1 3 9 3 2 2 4 1 4 . 4 3 . 1 2 2 3 2 8 6 Max Kills in Single Turn 5 | 1 1 1 2 2 1 3 1 3 2 2 1 2 2 1 1 . 3 2 . 1 1 1 1 1 5 4 Gunslinging 1 | . . . . . . . . . . 1 . . 1 . . . . . . . . . . . . . Exploded 5 | . 1 . 2 1 1 1 1 3 . . . . . . 1 . 3 2 . . . . . . 5 4 Melee 1 | . . . . . . . . . . . . . . . . . 1 . . . . . . . . . Uniques/NPCs Destroyed . | . . . . . . . . . . . . . . . . . . . . . . . . . . . Combat | -11 -10 -10 -8 -8 -8 -6 -6 -6 -6 -6 -6 -6 -5 -5 -5 -5 -4 -4 -4 -4 -4 -4 -3 -2 -2 -2 -------- Run | Yrd Mat Sub Mat Sto Rec Fac Was Fac Ext Cet Arc Hub Fac Upp Upp War Pro Fac Was Fac Upp Upp Res Res Qua Frg Hostile Shots Fired 2211 | . 103 28 111 71 13 59 1 83 181 98 22 167 125 9 17 134 211 134 1 23 50 152 129 120 50 119 Missed 704 | . 25 10 35 16 4 20 . 31 67 30 4 45 41 3 2 34 80 28 . 7 13 41 43 59 28 38 Hits 1507 | . 78 18 76 55 9 39 1 52 114 68 18 122 84 6 15 100 131 106 1 16 37 111 86 61 22 81 Melee 55 | . . . . . . . 1 . 2 . . 1 . . . 7 3 . 1 . . 12 . 21 . 7 Projectile 1452 | . 78 18 76 55 9 39 . 52 112 68 18 121 84 6 15 93 128 106 . 16 37 99 86 40 22 74 AOE 4 | . . . . . . . . . . . . . . . . . . . . . . . . 1 . 3 Critical Strikes 62 | . . . 2 1 . 5 . 3 1 10 1 4 1 . . 3 1 5 . . 2 7 1 8 1 6 Actively Blocked 16 | . . . . . . . . . . . . . . . . 1 1 . . . . . . 7 1 6 Part Disruptions 1 | . . . . . . . . . . . . . . . . 1 . . . . . . . . . . Damage Taken 30231 | . 815 378 1142 785 208 706 86 909 2027 1711 444 1540 1648 115 281 2041 2646 2153 32 412 525 1950 1892 1925 679 3181 Core 3379 | . 89 65 186 80 52 58 . 106 195 216 23 111 56 . 15 213 212 243 32 64 39 312 315 91 203 403 Absorbed by Shields 1099 | . . . . . . . . . . . . . . . . 57 220 . . 48 204 366 . 204 . . Redirected to Shielding 415 | . . . . . . . . . . . . 3 25 . . 315 72 . . . . . . . . . Ignored by Resistances 54 | . . . . . . . . 10 . . . . . . . . . 44 . . . . . . . . Regen/Repaired (Parts) 6286 | . . . . . . 69 42 95 715 418 22 76 1042 93 12 594 545 149 . 344 100 340 382 798 280 170 Core Remaining (%) 51 | 100 . 38 . . 42 . . . . . . 16 . . . . 50 . . . . 40 75 . . . Volleys Fired 850 | 5 59 14 73 38 17 21 9 29 96 47 10 30 61 6 9 7 57 15 . 23 25 41 44 39 14 61 Largest 4 | 2 2 2 3 3 3 3 1 3 3 3 3 3 3 3 3 3 3 3 . 1 1 2 3 4 2 2 Hottest 350 | 80 80 70 185 185 149 135 36 193 257 240 175 207 214 100 96 121 186 236 . 120 120 122 276 330 300 350 Shots Fired 1940 | 10 113 28 212 107 35 54 9 44 255 134 28 71 167 18 28 21 137 39 . 22 26 47 99 145 15 76 Gun 1063 | 10 88 14 199 71 22 27 . 18 80 84 28 71 132 18 28 15 78 13 . . . 15 40 12 . . Cannon 781 | . 25 14 13 35 1 13 . 4 169 50 . . 35 . . 6 47 24 . 22 26 32 59 133 14 59 Launcher 96 | . . . . 1 12 14 9 22 6 . . . . . . . 12 2 . . . . . . 1 17 Special . | . . . . . . . . . . . . . . . . . . . . . . . . . . . Kinetic 848 | . 36 14 94 31 9 21 . 11 100 93 28 58 117 12 20 15 70 13 . . . 7 20 79 . . Thermal 757 | 5 44 7 86 40 13 19 . 9 136 41 . 13 39 4 . 6 51 13 . 22 26 32 73 28 12 38 Explosive 31 | . . . . . 1 . 9 . . . . . . . . . 12 2 . . . . . . 1 6 Electromagnetic 286 | 5 33 7 32 36 12 14 . 24 19 . . . 11 2 8 . . 11 . . . . . 38 2 32 Entropic 18 | . . . . . . . . . . . . . . . . . 4 . . . . 8 6 . . . Robot Hit Streak 23 | 6 11 14 11 12 20 11 6 13 22 15 14 13 11 10 4 8 16 7 . 12 5 6 23 14 3 8 Robot Miss Streak 8 | 3 4 1 6 2 2 3 . 3 6 4 1 3 2 1 8 3 6 3 . 1 3 3 3 3 1 4 Penetration Max 2 | . . . . . . . . . 2 1 1 1 1 . . . 1 . . . . . . . 2 1 Secondary Targets 12 | . 1 . 3 . . . . . 1 3 1 . 2 . . . 1 . . . . . . . . . Max Gunslinging Chain 1 | . 1 . 1 . . . . . 1 1 1 . 1 . . . 1 . . . . . . . . . Capacitor 80 | . . . . . . . . . . . . . . . . . . . . 22 26 32 . . . . Shots Hit Robots 1284 | 6 76 24 136 69 21 39 5 33 162 102 26 36 99 12 9 14 91 25 . 20 23 41 68 91 8 48 Core Hits 654 | 3 34 5 52 28 13 37 3 25 119 40 10 14 40 5 6 2 41 14 . 6 11 17 21 38 13 57 Critical Kills 43 | . . . . . . . . . 8 2 1 4 9 1 . . 1 1 . . 1 1 . . 6 8 Critical Parts Destroyed 62 | . . . 2 . . . . . 13 8 . 3 8 . 2 2 5 1 . . . . . . 4 14 Critical Strikes 148 | . 1 . 8 3 . . . . 28 17 1 7 17 1 2 2 7 2 . . 1 1 4 6 10 30 Burn 15 | . . . 5 2 . . . . 4 1 . . . . . . . . . . . . 3 . . . Meltdown 5 | . . . . . . . . . 2 . . . . . . . . 1 . . 1 1 . . . . Destroy 111 | . . . 1 . . . . . 20 15 1 7 17 1 2 2 6 1 . . . . . . 10 28 Blast 9 | . . . . . . . . . 2 1 . . . . . . . . . . . . 1 5 . . Corrupt 6 | . 1 . 1 1 . . . . . . . . . . . . . . . . . . . 1 . 2 Smash 1 | . . . 1 . . . . . . . . . . . . . . . . . . . . . . . Detonate 1 | . . . . . . . . . . . . . . . . . 1 . . . . . . . . . Melee Attacks 34 | . . . 8 . . . . . . 7 . . . . . . 5 1 . . 9 4 . . . . Impact 8 | . . . 8 . . . . . . . . . . . . . . . . . . . . . . . Slashing 20 | . . . . . . . . . . 1 . . . . . . 5 1 . . 9 4 . . . . Piercing . | . . . . . . . . . . . . . . . . . . . . . . . . . . . Sneak Attacks 6 | . . . 1 . . . . . . 1 . . . . . . . . . . 4 . . . . . Combat Hostiles . | . . . . . . . . . . . . . . . . . . . . . . . . . . . Follow-up Attacks 1 | . . . 1 . . . . . . . . . . . . . . . . . . . . . . . Damage Inflicted 49191 | 68 1222 345 2951 1573 573 1703 1034 1438 3799 2052 726 1206 2642 258 319 455 3238 1513 . 846 1093 1826 2428 3388 2583 9912 Guns 14501 | 68 741 132 2248 883 337 427 . 296 656 1103 726 1198 2017 258 273 287 1283 129 . . . 560 804 75 . . Cannons 24445 | . 294 213 169 557 . 339 . 100 2920 949 . . 625 . . 151 842 599 . 846 679 974 1624 3313 2096 7155 Explosions 9029 | . 172 . 292 133 236 937 1034 1042 206 . . . . . 46 . 947 740 . . . . . . 487 2757 Melee 1149 | . . . 242 . . . . . . . . . . . . . 166 35 . . 414 292 . . . . Ramming 67 | . 15 . . . . . . . 17 . . 8 . . . 17 . 10 . . . . . . . . Kinetic 13349 | . 343 213 938 303 111 337 . 188 1063 1295 726 997 2086 213 126 287 1153 129 . . . 148 576 2117 . . Thermal 22696 | 32 531 77 1405 620 226 642 . 270 2372 757 . 201 532 41 46 151 916 476 . 846 679 974 1542 621 2050 6689 Explosive 5070 | . . . . 93 26 . 1034 . . . . . . . . . 810 529 . . . . . . 487 2091 Electromagnetic 5945 | 36 333 55 366 557 210 724 . 980 347 . . . 24 4 147 . . 334 . . . . . 650 46 1132 Impact 242 | . . . 242 . . . . . . . . . . . . . . . . . . . . . . . Slashing 907 | . . . . . . . . . . . . . . . . . 166 35 . . 414 292 . . . . Piercing . | . . . . . . . . . . . . . . . . . . . . . . . . . . . Entropic 915 | . . . . . . . . . . . . . . . . . 193 . . . . 412 310 . . . Highest Corruption 18 | . . . . . 1 . 16 18 16 16 16 16 5 6 6 6 . 6 11 12 12 12 . . . 5 Average Corruption 11 | . . . . . 1 . 11 16 16 16 16 16 3 5 6 6 . 3 9 11 12 12 . . . 4 Corruption Purged 5 | . . . . . . . . 5 . . . . . . . . . . . . . . . . . . Corruption Blocked . | . . . . . . . . . . . . . . . . . . . . . . . . . . . Effects 386 | . . . . . 2 . 10 34 107 40 14 35 25 17 17 1 . 2 1 18 33 29 . . . 1 Message Errors 99 | . . . . . . . 2 8 27 8 4 12 7 5 2 . . . . 8 9 6 . . . 1 Matter Fused 84 | . . . . . . . 1 7 25 10 3 12 7 4 6 . . . . 3 3 3 . . . . Heat Flow Errors 36 | . . . . . . . . 4 10 4 1 . 1 2 1 1 . . . 4 6 2 . . . . Energy Discharges 35 | . . . . . 1 . 2 1 10 3 1 3 2 3 3 . . . . . 2 4 . . . . Parts Rejected 11 | . . . . . . . 2 . 3 2 . . . . . . . 1 . . 1 2 . . . . Parts Fused 4 | . . . . . . . . 1 . . . 2 . . . . . . . . 1 . . . . . Data Loss (minor) 48 | . . . . . 1 . . 5 10 5 3 4 3 2 . . . 1 . 1 7 6 . . . . Data Loss (major) 21 | . . . . . . . . 1 5 2 1 1 2 1 2 . . . . 1 3 2 . . . . Misfires 12 | . . . . . . . . 1 5 1 . . 2 . 2 . . . . . 1 . . . . . Alerts 4 | . . . . . . . . 1 2 . . . 1 . . . . . . . . . . . . . Misdirections 14 | . . . . . . . 3 3 2 1 . 1 . . . . . . 1 . . 3 . . . . Weapon Failures 18 | . . . . . . . . 2 8 4 1 . . . 1 . . . . 1 . 1 . . . . Overload Shots 1 | . . . . . . . . . . 1 . . . . . . . . . . . . . . . . Overflow Damage 1853 | . . . 41 9 . 16 . 38 20 22 . . 46 . . . 2 116 . . 86 143 . 25 288 1001 Projectiles 1354 | . . . . 1 . . . 23 10 22 . . 46 . . . . . . . . 16 . 25 265 946 Explosions 245 | . . . . 8 . 16 . 15 10 . . . . . . . 2 116 . . . . . . 23 55 Melee 254 | . . . 41 . . . . . . . . . . . . . . . . . 86 127 . . . . Knockbacks 37 | . 3 3 2 . . . . . 1 . . . 3 . . . 5 . . . . . . 20 . . Impact . | . . . . . . . . . . . . . . . . . . . . . . . . . . . Kinetic 37 | . 3 3 2 . . . . . 1 . . . 3 . . . 5 . . . . . . 20 . . Secondary . | . . . . . . . . . . . . . . . . . . . . . . . . . . . Self-Inflicted Damage 1244 | . . . 82 138 18 . 55 41 99 . . . . . 50 . 154 216 . . . . . . 23 368 Shots 30 | . . . 2 3 3 . 2 4 2 . . . . . 1 . 2 3 . . . . . . 1 7 Rammed 7 | . 4 . . . . . . . . . . 1 . . . . . 2 . . . . . . . . Targets Rammed 11 | . 5 . . . . . . . 1 . . 1 1 . . 1 . 2 . . . . . . . . Kicked 4 | . 1 . . . . . . . 1 . . . 1 . . 1 . . . . . . . . . . Crushed . | . . . . . . . . . . . . . . . . . . . . . . . . . . . Highest Temperature 575 | 54 295 . 357 500 327 294 . 271 562 556 498 575 486 245 241 186 443 418 . 435 348 306 432 293 158 294 Average Temperature 118 | 26 63 . 95 158 138 114 . 70 116 140 205 159 131 123 122 69 104 113 . 169 152 95 113 79 67 100 Received Heat Transfer 4477 | . 303 . 378 162 33 171 . 324 447 18 72 540 273 27 . 219 246 242 . 49 157 297 150 18 45 306 Effects 36 | . 1 . . 8 1 . . . 4 3 1 10 4 . . . 3 1 . . . . . . . . Shutdowns 9 | . . . . 1 . . . . 3 . . 2 1 . . . 1 1 . . . . . . . . Energy Bleed 6 | . 1 . . 1 . . . . . 2 . . 1 . . . 1 . . . . . . . . . Interference 7 | . . . . 3 . . . . . . . 2 2 . . . . . . . . . . . . . Matter Decay 1 | . . . . . . . . . . . . 1 . . . . . . . . . . . . . . Short Circuit 3 | . . . . . 1 . . . . . 1 . . . . . 1 . . . . . . . . . Damage (minor) 5 | . . . . 1 . . . . 1 1 . 2 . . . . . . . . . . . . . . Damage (major) 5 | . . . . 2 . . . . . . . 3 . . . . . . . . . . . . . . Siege Activations . | . . . . . . . . . . . . . . . . . . . . . . . . . . . Martial Activations . | . . . . . . . . . . . . . . . . . . . . . . . . . . . Shielding Activations . | . . . . . . . . . . . . . . . . . . . . . . . . . . . Robots Disrupted . | . . . . . . . . . . . . . . . . . . . . . . . . . . . Combat Hostiles . | . . . . . . . . . . . . . . . . . . . . . . . . . . . Robots Corrupted 7 | . . . 2 . . 2 . 1 . . . . . . . . . . . . . . . . . 2 Combat Hostiles 5 | . . . 1 . . 2 . 1 . . . . . . . . . . . . . . . . . 1 Parts Fried 23 | . 1 . 1 1 1 4 . 7 2 . . . . . 1 . . 2 . . . 1 . . . 2 Impact Corruptions 3 | . . . 3 . . . . . . . . . . . . . . . . . . . . . . . Robots Melted 13 | . . . 1 . . . . . 7 . . . . . . . 1 1 . . 1 1 . 1 . . Combat Hostiles 13 | . . . 1 . . . . . 7 . . . . . . . 1 1 . . 1 1 . 1 . . Parts Melted 44 | 1 . . 7 1 1 . . 1 26 . . . . . . . 1 2 . . . 3 1 . . . Heat Transferred 22939 | 75 925 175 2829 1271 407 250 . 111 8002 1295 . 175 599 50 50 185 1210 372 . 740 592 851 1997 556 . 222 Parts Sabotaged . | . . . . . . . . . . . . . . . . . . . . . . . . . . . Parts Stolen . | . . . . . . . . . . . . . . . . . . . . . . . . . . . Parts Stripped . | . . . . . . . . . . . . . . . . . . . . . . . . . . . Power Chain Reactions 14 | . 2 . 3 1 . 3 . 3 1 . . . . . 1 . . . . . . . . . . . Alert | -11 -10 -10 -8 -8 -8 -6 -6 -6 -6 -6 -6 -6 -5 -5 -5 -5 -4 -4 -4 -4 -4 -4 -3 -2 -2 -2 ------- Run | Yrd Mat Sub Mat Sto Rec Fac Was Fac Ext Cet Arc Hub Fac Upp Upp War Pro Fac Was Fac Upp Upp Res Res Qua Frg Maximum Alert Level 3 | . . . . 1 . 1 . 1 3 2 . . 1 . . . . 1 . . . . . . 2 3 Low Security (%) 75 | 100 100 . 100 58 100 4 100 78 40 . 100 100 83 . . . . 81 100 100 . . 100 100 41 5 Level 1 10 | . . . . 41 . 95 . 21 6 18 . . 16 . . . . 18 . . . . . . 37 9 Level 2 7 | . . . . . . . . . 22 81 . . . . . . . . . . . . . . 20 27 Level 3 5 | . . . . . . . . . 30 . . . . . . . . . . . . . . . . 57 Level 4 . | . . . . . . . . . . . . . . . . . . . . . . . . . . . Level 5 . | . . . . . . . . . . . . . . . . . . . . . . . . . . . High Security . | . . . . . . . . . . . . . . . . . . . . . . . . . . . Max Security . | . . . . . . . . . . . . . . . . . . . . . . . . . . . Peak Influence 1052 | 5 156 . 178 256 62 318 108 270 983 586 193 79 231 . . . . 351 98 33 . . 78 102 421 1052 Initial 542 | . . . . 25 45 300 108 32 55 542 162 36 . . . . . . 98 33 . . 46 . 47 199 Average 163 | . 53 . 73 163 9 250 77 98 431 466 158 24 151 . . . . 127 78 8 . . 17 31 252 683 Influence Increases 10679 | 10 581 . 709 569 254 758 28 526 1764 264 82 323 704 55 185 . 440 560 . 98 90 360 263 413 488 1155 Destroy 0b10 Robot/C 5340 | . 360 . 440 360 60 240 . 160 1060 220 80 100 400 40 80 . 340 100 . 60 80 120 140 200 220 480 Destroy 0b10 Robot/NC 305 | 10 10 . 45 25 5 30 . 10 50 5 . 25 20 5 5 . . 10 . . . 5 10 . 10 25 Destroy Leader 996 | . 84 . 120 106 . 62 . 30 146 10 . 46 74 10 10 . 40 30 . 30 10 10 50 30 30 68 Allied During Kill 359 | . . . . . 1 21 . . 334 3 . . . . . . . . . . . . . . . . Successful Hack 232 | . 28 . 15 22 8 48 . . 42 . . 22 . . . . . 14 . 4 . . 29 . . . Select Force Hacks 240 | . 60 . . 30 150 . . . . . . . . . . . . . . . . . . . . . Disable Machine 570 | . 15 . 30 15 . 15 . 15 15 15 . 90 90 . . . . 30 . . . . . 15 90 135 Anti-Garrison Action 200 | . . . . . . . . . . . . . . . . . . 200 . . . . . . . . Destroy Structure 1042 | . 9 . 14 11 30 42 28 11 27 11 2 25 120 . . . . 116 . 4 . . 34 63 108 387 Advance Influence 300 | . . . . . . 300 . . . . . . . . . . . . . . . . . . . . Partial Spotted 30 | . . . 15 . . . . . . . . . . . . . . 15 . . . . . . . . Lose Combat Pursuer 1065 | . 15 . 30 . . . . 300 90 . . 15 . . 90 . 60 45 . . . 225 . 105 30 60 Influence Decreases 9695 | 10 570 11 649 511 372 448 292 458 909 827 384 427 516 243 185 . 440 278 234 130 106 291 332 329 217 526 Entered New Map 1621 | . . 6 . 35 73 . 202 14 59 427 244 68 . 71 . . . . 184 15 7 . 23 . 37 156 Time Decay 6491 | 10 461 5 451 416 279 238 70 304 620 350 140 309 506 172 185 . 391 188 20 111 99 171 279 296 150 270 Search Patrol Dispatched 200 | . . . . . . 100 . 100 . . . . . . . . . . . . . . . . . . Lost Part 836 | . 40 . 60 60 . 20 10 40 50 30 . 50 10 . . . 49 90 10 4 . 120 30 33 30 100 Lost Ally 340 | . . . . . 20 90 10 . 180 20 . . . . . . . . 20 . . . . . . . Purge Threat 207 | . 69 . 138 . . . . . . . . . . . . . . . . . . . . . . . Squads Dispatched 59 | . 5 . 2 2 . 4 . 6 10 . . 4 4 . . . . 5 . . . 1 7 . 4 5 Investigation 13 | . 3 . . 1 . . . . 6 . . . . . . . . 1 . . . . 2 . . . Extermination 11 | . . . . . . 1 . 2 . . . 1 3 . . . . 1 . . . . . . 1 2 Reinforcement 27 | . 2 . 2 1 . 2 . 4 2 . . 2 1 . . . . 2 . . . . 5 . 3 1 Assault 5 | . . . . . . . . . 2 . . . . . . . . . . . . 1 . . . 2 Garrison 3 | . . . . . . 1 . . . . . 1 . . . . . 1 . . . . . . . . Intercept . | . . . . . . . . . . . . . . . . . . . . . . . . . . . Searches Triggered 2 | . . . . . . 1 . 1 . . . . . . . . . . . . . . . . . . Construction Impeded 9 | . . . . . . 2 . 3 2 . . 1 . . . . . . . . . . 1 . . . Haulers Reinforced 3 | . . . . . . . . 1 . . . . 1 . . . . . . . . . . . 1 . Active Scanning Responses . | . . . . . . . . . . . . . . . . . . . . . . . . . . . Cargo Convoy Interrupts . | . . . . . . . . . . . . . . . . . . . . . . . . . . . Stealth | -11 -10 -10 -8 -8 -8 -6 -6 -6 -6 -6 -6 -6 -5 -5 -5 -5 -4 -4 -4 -4 -4 -4 -3 -2 -2 -2 --------- Run | Yrd Mat Sub Mat Sto Rec Fac Was Fac Ext Cet Arc Hub Fac Upp Upp War Pro Fac Was Fac Upp Upp Res Res Qua Frg Distress Signals 26 | . 2 . 1 2 1 1 . . 5 2 . 1 . . . 1 . 1 . . . . 5 4 . . Communications Jammed . | . . . . . . . . . . . . . . . . . . . . . . . . . . . Distress Signals . | . . . . . . . . . . . . . . . . . . . . . . . . . . . Times Spotted 520 | . 30 2 36 22 9 17 4 27 59 16 6 19 22 6 9 27 22 21 6 3 4 28 34 28 14 49 Peak Tracking Total 14 | . 8 2 6 7 2 6 3 4 8 5 2 7 4 1 5 13 5 9 6 2 4 9 10 6 9 14 Tactical Retreats 43 | . 1 . 2 . . . 1 8 5 . . 1 . . 1 . 2 2 . . . 8 . 7 2 3 Traps | -11 -10 -10 -8 -8 -8 -6 -6 -6 -6 -6 -6 -6 -5 -5 -5 -5 -4 -4 -4 -4 -4 -4 -3 -2 -2 -2 ------- Run | Yrd Mat Sub Mat Sto Rec Fac Was Fac Ext Cet Arc Hub Fac Upp Upp War Pro Fac Was Fac Upp Upp Res Res Qua Frg Traps Triggered 30 | . 2 . 1 . . 4 . 1 7 . . 2 3 . . 1 . 1 . 2 . . 2 . . 4 Indirectly 7 | . . . . . . 3 . . 3 . . . . . . . . . . . . . . . . 1 Trap Hack Attempts . | . . . . . . . . . . . . . . . . . . . . . . . . . . . Triggered . | . . . . . . . . . . . . . . . . . . . . . . . . . . . Disarmed . | . . . . . . . . . . . . . . . . . . . . . . . . . . . Reprogrammed . | . . . . . . . . . . . . . . . . . . . . . . . . . . . Reused . | . . . . . . . . . . . . . . . . . . . . . . . . . . . Traps Extracted . | . . . . . . . . . . . . . . . . . . . . . . . . . . . Installed . | . . . . . . . . . . . . . . . . . . . . . . . . . . . Triggered . | . . . . . . . . . . . . . . . . . . . . . . . . . . . Machines | -11 -10 -10 -8 -8 -8 -6 -6 -6 -6 -6 -6 -6 -5 -5 -5 -5 -4 -4 -4 -4 -4 -4 -3 -2 -2 -2 ---------- Run | Yrd Mat Sub Mat Sto Rec Fac Was Fac Ext Cet Arc Hub Fac Upp Upp War Pro Fac Was Fac Upp Upp Res Res Qua Frg Machines Disabled 42 | . 1 . 2 1 . 1 . 1 3 1 . 6 6 . . . . 2 . . . . . 1 6 11 Max in Single Turn 3 | . 1 . 1 1 . 1 . 1 1 1 . 1 1 . . . . 2 . . . . . 1 3 3 Garrison Access 2 | . . . . . . . . . . . . . . . . . . 1 . . . . 1 . . . Machines Repaired . | . . . . . . . . . . . . . . . . . . . . . . . . . . . Machines Dismantled . | . . . . . . . . . . . . . . . . . . . . . . . . . . . Machines Sabotaged . | . . . . . . . . . . . . . . . . . . . . . . . . . . . Overloaded Fab Kills . | . . . . . . . . . . . . . . . . . . . . . . . . . . . Hacking | -11 -10 -10 -8 -8 -8 -6 -6 -6 -6 -6 -6 -6 -5 -5 -5 -5 -4 -4 -4 -4 -4 -4 -3 -2 -2 -2 --------- Run | Yrd Mat Sub Mat Sto Rec Fac Was Fac Ext Cet Arc Hub Fac Upp Upp War Pro Fac Was Fac Upp Upp Res Res Qua Frg Machines Accessed 77 | . 7 . 7 7 14 3 . 3 14 1 . 2 4 1 . 1 . 4 . 2 . . 5 . . 2 Terminals 51 | . 5 . 6 6 6 1 . 2 12 1 . 2 3 1 . . . 1 . 1 . . 2 . . 2 Fabricators 1 | . . . . . . . . . . . . . . . . . . 1 . . . . . . . . Repair Stations . | . . . . . . . . . . . . . . . . . . . . . . . . . . . Recycling Units 12 | . 2 . . 1 6 . . . 2 . . . . . . . . . . . . . 1 . . . Scanalyzers 8 | . . . 1 . . 2 . . . . . . 1 . . . . 1 . 1 . . 2 . . . Garrison Access 2 | . . . . . . . . 1 . . . . . . . . . 1 . . . . . . . . Total Hacks 187 | . 22 . 17 14 41 10 . 7 28 3 . 7 8 1 . 1 . 13 . 3 . . 9 . . 3 Successful 97 | . 15 . 10 9 30 7 . . 8 1 . 4 2 1 . 1 . 4 . 1 . . 3 . . 1 Failed 87 | . 7 . 6 5 11 2 . 7 20 2 . 3 5 . . . . 9 . 2 . . 6 . . 2 Catastrophic 26 | . . . 4 . 2 1 . 2 7 1 . 2 2 . . . . 2 . . . . 3 . . . Database Lockouts 3 | . . . 1 . . 1 . . . . . . 1 . . . . . . . . . . . . . Manual 82 | . 18 . 7 11 18 2 . 3 7 . . 5 5 . . . . 2 . . . . 3 . . 1 Terminals 125 | . 18 . 15 13 14 3 . 5 25 3 . 7 6 1 . . . 5 . 2 . . 5 . . 3 Fabricators 2 | . . . . . . . . . . . . . . . . . . 2 . . . . . . . . Repair Stations . | . . . . . . . . . . . . . . . . . . . . . . . . . . . Recycling Units 24 | . 4 . . 1 15 . . . 3 . . . . . . . . . . . . . 1 . . . Scanalyzers 17 | . . . 2 . . 7 . . . . . . 2 . . . . 2 . 1 . . 3 . . . Garrison Access 6 | . . . . . . . . 2 . . . . . . . . . 4 . . . . . . . . Terminal Hacks 38 | . 5 . 3 2 14 . . . 5 1 . 3 . 1 . 1 . 1 . 1 . . . . . 1 Record 13 | . . . . . 11 . . . . 1 . . . 1 . . . . . . . . . . . . Robot Analysis 4 | . 1 . . . 1 . . . . . . 2 . . . . . . . . . . . . . . Prototype ID Bank 2 | . 2 . . . . . . . . . . . . . . . . . . . . . . . . . Open Door 6 | . . . . 1 . . . . 4 . . . . . . 1 . . . . . . . . . . Branch Access Points 1 | . . . 1 . . . . . . . . . . . . . . . . . . . . . . . Terminal Index 2 | . . . 1 . . . . . . . . . . . . . . . . . . . . . . 1 Alert Level 2 | . . . . . . . . . . . . 1 . . . . . 1 . . . . . . . . Unreport Threat 2 | . 1 . 1 . . . . . . . . . . . . . . . . . . . . . . . Locate Traps 2 | . . . . . . . . . 1 . . . . . . . . . . 1 . . . . . . Hauler Manifests 2 | . 1 . . 1 . . . . . . . . . . . . . . . . . . . . . . Release Object 2 | . . . . . 2 . . . . . . . . . . . . . . . . . . . . . Fabricator Hacks 1 | . . . . . . . . . . . . . . . . . . 1 . . . . . . . . Build 1 | . . . . . . . . . . . . . . . . . . 1 . . . . . . . . Repair Station Hacks . | . . . . . . . . . . . . . . . . . . . . . . . . . . . Recycling Unit Hacks 6 | . . . . . 5 . . . 1 . . . . . . . . . . . . . . . . . Retrieve Components 6 | . . . . . 5 . . . 1 . . . . . . . . . . . . . . . . . Scanalyzer 8 | . . . 1 . . 5 . . . . . . 1 . . . . . . . . . 1 . . . Insert Component 1 | . . . . . . 1 . . . . . . . . . . . . . . . . . . . . Analyze 1 | . . . . . . 1 . . . . . . . . . . . . . . . . . . . . Retrieve Study 6 | . . . 1 . . 3 . . . . . . 1 . . . . . . . . . 1 . . . Garrison Access Hacks . | . . . . . . . . . . . . . . . . . . . . . . . . . . . Unauthorized Hacks 44 | . 10 . 6 7 11 2 . . 2 . . 1 1 . . . . 2 . . . . 2 . . . Terminals 35 | . 8 . 6 6 6 2 . . 2 . . 1 1 . . . . 1 . . . . 2 . . . Botnet 11 | . 2 . 1 1 1 1 . . 1 . . 1 1 . . . . 1 . . . . 1 . . . Operators 2 | . 1 . . . . . . . 1 . . . . . . . . . . . . . . . . . Skim 22 | . 5 . 5 5 5 1 . . . . . . . . . . . . . . . . 1 . . . Fabricators . | . . . . . . . . . . . . . . . . . . . . . . . . . . . Repair Stations . | . . . . . . . . . . . . . . . . . . . . . . . . . . . Recycling Units 8 | . 2 . . 1 5 . . . . . . . . . . . . . . . . . . . . . Tunnel 8 | . 2 . . 1 5 . . . . . . . . . . . . . . . . . . . . . Scanalyzers . | . . . . . . . . . . . . . . . . . . . . . . . . . . . Garrison Access 1 | . . . . . . . . . . . . . . . . . . 1 . . . . . . . . Jam 1 | . . . . . . . . . . . . . . . . . . 1 . . . . . . . . Data Cores Recovered 1 | . . . . . . . . . . . . 1 . . . . . . . . . . . . . . Used . | . . . . . . . . . . . . . . . . . . . . . . . . . . . Hacking Detections 62 | . 6 . 6 6 8 3 . 3 12 1 . 2 3 . . . . 3 . 2 . . 5 . . 2 Full Trace Events 7 | . . . 1 . 1 . . . 5 . . . . . . . . . . . . . . . . . Feedback Events 1 | . . . . . 1 . . . . . . . . . . . . . . . . . . . . . Corruption 1 | . . . . . 1 . . . . . . . . . . . . . . . . . . . . . Feedback Blocked . | . . . . . . . . . . . . . . . . . . . . . . . . . . . Robot Schematics Acquired . | . . . . . . . . . . . . . . . . . . . . . . . . . . . Robots Built . | . . . . . . . . . . . . . . . . . . . . . . . . . . . Authchips . | . . . . . . . . . . . . . . . . . . . . . . . . . . . Time . | . . . . . . . . . . . . . . . . . . . . . . . . . . . Total Robot Build Rating . | . . . . . . . . . . . . . . . . . . . . . . . . . . . Part Schematics Acquired 1 | . . . . . . 1 . . . . . . . . . . . . . . . . . . . . Parts Built 2 | . . . . . . . . . . . . . . . . . . 2 . . . . . . . . Authchips . | . . . . . . . . . . . . . . . . . . . . . . . . . . . Time 69 | . . . . . . . . . . . . . . . . . . 69 . . . . . . . . Total Part Build Rating 18 | . . . . . . . . . . . . . . . . . . 18 . . . . . . . . Part Studies Acquired 5 | . . . 1 . . 3 . . . . . . . . . . . . . . . . 1 . . . Parts Repaired . | . . . . . . . . . . . . . . . . . . . . . . . . . . . Time . | . . . . . . . . . . . . . . . . . . . . . . . . . . . Parts Recycled . | . . . . . . . . . . . . . . . . . . . . . . . . . . . Recycled Matter . | . . . . . . . . . . . . . . . . . . . . . . . . . . . Retrieved Matter . | . . . . . . . . . . . . . . . . . . . . . . . . . . . Retrieved Components 13 | . . . . . 13 . . . . . . . . . . . . . . . . . . . . . Parts Scanalyzed 1 | . . . . . . 1 . . . . . . . . . . . . . . . . . . . . Part Schematics Acquired 1 | . . . . . . 1 . . . . . . . . . . . . . . . . . . . . Parts Damaged . | . . . . . . . . . . . . . . . . . . . . . . . . . . . Bothacking | -11 -10 -10 -8 -8 -8 -6 -6 -6 -6 -6 -6 -6 -5 -5 -5 -5 -4 -4 -4 -4 -4 -4 -3 -2 -2 -2 ------------ Run | Yrd Mat Sub Mat Sto Rec Fac Was Fac Ext Cet Arc Hub Fac Upp Upp War Pro Fac Was Fac Upp Upp Res Res Qua Frg Used RIF Installer . | . . . . . . . . . . . . . . . . . . . . . . . . . . . Robots Hacked 2 | . . . . . . . . . . 2 . . . . . . . . . . . . . . . . Non-combat 1 | . . . . . . . . . . 1 . . . . . . . . . . . . . . . . Combat 1 | . . . . . . . . . . 1 . . . . . . . . . . . . . . . . Robot Hacks Applied 2 | . . . . . . . . . . 2 . . . . . . . . . . . . . . . . parse_system 2 | . . . . . . . . . . 2 . . . . . . . . . . . . . . . . Relay Couplers Released 4 | . . . . . . . . . . . . . 3 . . . . . . . . . 1 . . . Machine Destruction 1 | . . . . . . . . . . . . . . . . . . . . . . . 1 . . . Programmers 3 | . . . . . . . . . . . . . 3 . . . . . . . . . . . . . Fabnet Peak Effective % . | . . . . . . . . . . . . . . . . . . . . . . . . . . . Robots Rewired 26 | . . . . . 12 . . . 14 . . . . . . . . . . . . . . . . . Allies Hacked 1 | . . . . . 1 . . . . . . . . . . . . . . . . . . . . . Hacks Repelled . | . . . . . . . . . . . . . . . . . . . . . . . . . . . Allies | -11 -10 -10 -8 -8 -8 -6 -6 -6 -6 -6 -6 -6 -5 -5 -5 -5 -4 -4 -4 -4 -4 -4 -3 -2 -2 -2 -------- Run | Yrd Mat Sub Mat Sto Rec Fac Was Fac Ext Cet Arc Hub Fac Upp Upp War Pro Fac Was Fac Upp Upp Res Res Qua Frg Total Allies 33 | . . . . . 12 . . . 20 . . . . . . . . . 1 . . . . . . . Largest Group 12 | . . . . . 9 9 1 . 12 1 . . . . . . . . 1 . . . . . . . Highest-Rated Group 327 | . . . . . 127 127 10 . 327 39 . . . . . . . . 46 . . . . . . . Highest-Rated Ally 46 | . . . . . 34 34 10 . 39 39 . . . . . . . . 46 . . . . . . . Total Orders 6 | . . . . . 1 2 . . 3 . . . . . . . . . . . . . . . . . STAY 3 | . . . . . . 1 . . 2 . . . . . . . . . . . . . . . . . FOLLOW 2 | . . . . . . 1 . . 1 . . . . . . . . . . . . . . . . . DROP 1 | . . . . . 1 . . . . . . . . . . . . . . . . . . . . . Ally Attacks 190 | . . . . . 13 24 . . 139 9 . . . . . . . . 5 . . . . . . . Total Damage 3396 | . . . . . 293 564 . . 2410 91 . . . . . . . . 38 . . . . . . . Kills 32 | . . . . . 4 7 . . 20 1 . . . . . . . . . . . . . . . . Allies Corrupted 1 | . . . . . 1 . . . . . . . . . . . . . . . . . . . . . Allies Melted 3 | . . . . . . . . . . . . . . . . 1 . . . . . . . 2 . . Intel | -11 -10 -10 -8 -8 -8 -6 -6 -6 -6 -6 -6 -6 -5 -5 -5 -5 -4 -4 -4 -4 -4 -4 -3 -2 -2 -2 ------- Run | Yrd Mat Sub Mat Sto Rec Fac Was Fac Ext Cet Arc Hub Fac Upp Upp War Pro Fac Was Fac Upp Upp Res Res Qua Frg Active Infowar (turns) 12927 | 22 992 . 259 788 803 504 68 . . . . 567 1130 615 494 866 841 522 50 463 688 452 1125 1308 276 94 Optics 908 | . . . 135 . . . . . . . . . . . . . . 522 50 201 . . . . . . Sensors 5943 | . . . . . . . . . . . . 494 1113 615 494 69 . . . 261 688 452 569 1188 . . IFF 460 | . . . . . . . . . . . . . . . . . . 139 50 271 . . . . . . Terrain 4092 | . . . . . . . . . . . . 386 470 531 494 866 841 . . . . . 14 120 276 94 Structural 2194 | . . . 31 788 803 504 68 . . . . . . . . . . . . . . . . . . . Seismic 1944 | 22 992 . 93 . . . . . . . . . . . . . . 50 . . . . 787 . . . ECM 2 | . . . . . . . . . . . . . . . . . . . . . 2 . . . . . Robot Analysis Total 4 | . 1 . . . 1 . . . . . . 2 . . . . . . . . . . . . . . Derelict Logs Recovered 7 | . . 1 . . . . . . . . . . . 1 . . 2 . . . 2 1 . . . . Drone Launches . | . . . . . . . . . . . . . . . . . . . . . . . . . . . Drone Recoveries . | . . . . . . . . . . . . . . . . . . . . . . . . . . . Exploration | -11 -10 -10 -8 -8 -8 -6 -6 -6 -6 -6 -6 -6 -5 -5 -5 -5 -4 -4 -4 -4 -4 -4 -3 -2 -2 -2 ------------- Run | Yrd Mat Sub Mat Sto Rec Fac Was Fac Ext Cet Arc Hub Fac Upp Upp War Pro Fac Was Fac Upp Upp Res Res Qua Frg Turns Passed 23117 | 119 1689 210 1457 1015 1489 517 156 825 2369 799 288 868 1569 615 494 1194 1255 541 50 477 816 636 1213 1547 313 596 Spaces Moved 13089 | 57 593 95 612 396 744 420 162 605 1596 387 103 294 750 275 244 576 800 325 93 318 535 404 819 1241 252 393 Core 155 | 3 . . . . . . . . . . . . . . . . . 44 93 15 . . . . . . Treads 1294 | 54 377 95 . . . . . . . 116 103 294 183 . . . . 55 . . . . 8 . 9 . Legs 8552 | . 216 . . 296 744 420 162 605 1396 271 . . 397 275 244 576 772 226 . 241 . . 642 502 174 393 Wheels 976 | . . . 612 100 . . . . . . . . . . . . . . . . . . . 264 . . Hover 1815 | . . . . . . . . . 83 . . . 165 . . . . . . 62 535 404 169 328 69 . Flight 297 | . . . . . . . . . 117 . . . 5 . . . 28 . . . . . . 147 . . Fastest Speed 50 | 50 160 160 120 110 110 80 81 55 55 114 146 146 111 191 191 109 95 50 50 50 121 121 108 69 74 94 Average Speed 126 | 154 171 160 128 152 145 99 82 78 106 134 146 147 170 196 191 191 105 96 50 122 121 132 118 105 93 96 Slowest Speed 299 | 160 240 160 135 186 186 164 88 147 222 164 146 279 284 213 191 299 250 260 50 260 121 212 250 250 116 105 Overloaded Moves . | . . . . . . . . . . . . . . . . . . . . . . . . . . . Propulsion Burnouts . | . . . . . . . . . . . . . . . . . . . . . . . . . . . Robots Hopped . | . . . . . . . . . . . . . . . . . . . . . . . . . . . Potential Cave-ins 32 | . . . . . . . . . . . . . . . . 1 . . . . . . . 4 . 27 Cave-ins Triggered 2 | . . . . . . . . . . . . . . . . . . . . . . . . . . 2 Exploration Rate (%) 44 | 4 88 13 51 42 94 10 70 16 95 80 70 29 20 40 39 80 74 14 91 9 61 41 21 17 30 14 Regions Visited 26 Branch Regions 15 Pre-discovered Areas 13 | . 2 . . 2 6 . . . . . . . . . . . 1 . . . 1 1 . . . . Known Exits Taken 17 | . 1 1 1 . 1 . . 1 1 . . 1 1 1 1 1 . . . 1 1 1 1 1 1 . Unknown Exits Taken 5 | 1 . . . 1 . . . . . 1 1 . . . . . 1 . . . . . . . . . Scrap Searched 6 | . . . . . . . . . . . . . . 1 1 . . . . . 2 2 . . . . Spaces Dug 35 | . . . . . . . . . . . . 5 6 . . . . . . . . . 3 1 1 19 Terrain Destroyed 796 | . 7 . 10 3 15 43 43 9 28 11 5 26 61 4 7 6 104 76 . 2 10 13 16 25 70 202 Melee . | . . . . . . . . . . . . . . . . . . . . . . . . . . . Projectile 450 | . . . . . . . . . 20 10 5 26 61 4 5 6 33 7 . 2 10 13 16 25 53 154 AOE 344 | . 7 . 10 3 15 43 43 9 7 . . . . . 2 . 71 69 . . . . . . 17 48 Terrain Rammed . | . . . . . . . . . . . . . . . . . . . . . . . . . . . Walls Destroyed . | . . . . . . . . . . . . . . . . . . . . . . . . . . . Machines Disabled . | . . . . . . . . . . . . . . . . . . . . . . . . . . . Actions | -11 -10 -10 -8 -8 -8 -6 -6 -6 -6 -6 -6 -6 -5 -5 -5 -5 -4 -4 -4 -4 -4 -4 -3 -2 -2 -2 --------- Run | Yrd Mat Sub Mat Sto Rec Fac Was Fac Ext Cet Arc Hub Fac Upp Upp War Pro Fac Was Fac Upp Upp Res Res Qua Frg Total 18083 | 77 1151 125 1141 734 1131 475 174 918 2067 562 216 669 922 335 254 653 1085 522 95 404 689 480 973 1385 315 531 Wait 3029 | . 461 12 349 279 251 18 1 246 132 70 100 323 38 49 2 28 198 132 3 41 104 26 14 65 38 49 Move 13066 | 56 592 94 611 395 743 420 161 604 1595 386 102 294 749 274 243 576 799 325 92 317 534 403 818 1240 251 392 Hop . | . . . . . . . . . . . . . . . . . . . . . . . . . . . Pick Up 113 | 8 13 2 22 5 8 . . 2 10 7 . 2 4 1 . 7 2 2 . 3 1 . 4 5 3 2 Fast Attach 181 | 5 6 . 19 3 1 1 2 11 9 9 . 5 3 . . 8 1 11 . 8 7 3 45 12 2 10 Attach 112 | 2 6 2 13 5 3 6 1 4 7 4 . 2 13 . . 8 7 8 . 4 . 2 4 6 1 4 Detach 79 | . 3 . 5 . 4 6 . 7 6 8 . 2 13 . . 4 4 9 . 2 1 . 4 1 . . Swap 102 | . 2 1 9 5 4 1 . 1 8 8 4 8 10 5 . 4 8 5 . 2 2 1 7 1 2 4 Drop 201 | 1 4 . 33 4 12 2 . 14 10 16 . 3 4 . . 11 4 12 . 4 6 . 33 16 4 8 Fire 850 | 5 59 14 73 38 17 21 9 29 96 47 10 30 61 6 9 7 57 15 . 23 25 41 44 39 14 61 Melee 33 | . . . 7 . . . . . . 7 . . . . . . 5 1 . . 9 4 . . . . Ram 1 | . . . . . . . . . . . . . . . . . . 1 . . . . . . . . Kick 3 | . 1 . . . . . . . 1 . . . 1 . . . . . . . . . . . . . Crush 5 | . 4 . . . . . . . . . . . . . . . . 1 . . . . . . . . Escape Stasis 45 | . . . . . . . . . 18 . . . 26 . . . . . . . . . . . . 1 Rewire 263 | . . . . . 88 . . . 175 . . . . . . . . . . . . . . . . . Trap . | . . . . . . . . . . . . . . . . . . . . . . . . . . . Miscellaneous . | . . . . . . . . . . . . . . . . . . . . . . . . . . . Route ------- -11/Scrapyard -10/Materials (discovered 6 exits: [*Mat x3] / [*Min x2] / *Sub) -10/Subcaves (discovered 2 exits: *Mat x2) -8/Materials (discovered 2 exits: Fac / *Sto) -8/Storage (discovered 2 exits: Fac / *Rec) -8/Recycling -6/Factory (discovered 8 exits: Fac x4 / Low x2 / Ext x2) -6/Waste -6/Factory (discovered 2 exits: *Ext x2) -6/Extension (discovered 2 exits: *Fac / *Cet) -6/Cetus (discovered 2 exits: *Fac / [*Arc]) -6/Archives (discovered 2 exits: *Fac / *Hub) -6/Hub_04(d) -5/Factory (discovered 3 exits: *Fac / *Upp x2) -5/Upper Caves -5/Upper Caves -5/Warlord -4/Proximity Caves -4/Factory -4/Waste -4/Factory (discovered 2 exits: *Res / *Upp) -4/Upper Caves -4/Upper Caves -3/Research -2/Research (discovered 3 exits: [*Acc] / *Qua x2) -2/Quarantine (discovered 2 exits: [*Sec] / *Frg) -2/Protoforge History --------- Turn | Location | Event 21 | -11/Scrapyard | Discovered new exit (range 14) 120 | -11/Scrapyard | Entered Materials 319 | -10/Materials | Build established: Mutant 464 | -10/Materials | Discovered new exit (range 15) 580 | -10/Materials | Discovered new exit (range 12) 645 | -10/Materials | Lost 3 parts (1p1n1w) 706 | -10/Materials | Discovered new exit (range 15) 821 | -10/Materials | Discovered new exit (range 16) 1185 | -10/Materials | Discovered new exit (range 16) 1199 | -10/Materials | Learned Storage terminal intel 1252 | -10/Materials | Loaded intel: 11 interactive machine locations 1297 | -10/Materials | Identified exit to Subcaves 1334 | -10/Materials | Learned 4 Subcaves zone layouts 1360 | -10/Materials | Learned Storage interactive machine intel 1398 | -10/Materials | Learned location of 1 exit from Recycling 1809 | -10/Materials | Entered Subcaves 1810 | -10/Subcaves | Identified exit to Materials 1811 | -10/Subcaves | Learned Materials stockpile data 1858 | -10/Subcaves | Core integrity fell below 50% 2019 | -10/Subcaves | Entered Materials 2019 | -8/Materials | Evolved 4 slots: Propulsion x1, Utility x2, Weapon x1 2128 | -8/Materials | Identified exit to Storage 2383 | -8/Materials | Central database locked down 2823 | -8/Materials | Build established: Tank 3209 | -8/Materials | Identified exit to Factory 3257 | -8/Materials | Learned Factory scanalyzer intel 3327 | -8/Materials | Learned Storage emergency access door positions 3347 | -8/Materials | Learned Factory machine intel 3375 | -8/Materials | Learned Storage trap positions 3415 | -8/Materials | Learned 2 Storage zone layouts 3476 | -8/Materials | Entered Storage 3478 | -8/Storage | Loaded intel: 16 trap records 3479 | -8/Storage | Loaded intel: 18 interactive machine locations 3480 | -8/Storage | Loaded intel: 13 terminal locations 3686 | -8/Storage | Lost 4 parts (3u1w) 3894 | -8/Storage | Used back door to open Recycling access 3894 | -8/Storage | Discovered new exit (range 5) 4053 | -8/Storage | Build established: Gunner 4146 | -8/Storage | Learned Factory fabricator intel 4321 | -8/Storage | Learned Factory trap positions 4361 | -8/Storage | Learned location of Extension (-6) 4491 | -8/Storage | Entered Recycling 4492 | -8/Recycling | Identified exit to Factory 4592 | -8/Recycling | Core integrity fell below 50% 5062 | -8/Recycling | P-60 Hacker assimilated allied Trooper 3a 5292 | -8/Recycling | Found Prototype Device 5295 | -8/Recycling | Identified Scrap Engine 5322 | -8/Recycling | Entered Scraplab 5637 | -8/Recycling | Build established: Commander-Mutant 5704 | -8/Recycling | Learned location of 1 exit from Extension 5751 | -8/Recycling | Learned location of 3 exits from Factory 5812 | -8/Recycling | Learned location of Zion (-7) 5829 | -8/Recycling | Learned Storage emergency access door positions 5835 | -8/Recycling | Learned Factory non-interactive machine intel 5853 | -8/Recycling | Learned location of 3 exits from Factory 5922 | -8/Recycling | Learned location of 1 exit from Extension 5980 | -8/Recycling | Entered Factory 5980 | -6/Factory | Accompanied by 9 allies 5980 | -6/Factory | Evolved 4 slots: Power x1, Propulsion x1, Utility x2 5981 | -6/Factory | Identified exit to Factory 5981 | -6/Factory | Identified exit to Lower Caves 5981 | -6/Factory | Identified exit to Extension 5983 | -6/Factory | Loaded intel: 71 trap records 5984 | -6/Factory | Loaded intel: 294 machine locations 5985 | -6/Factory | Loaded intel: 238 non-interactive machine locations 5986 | -6/Factory | Loaded intel: 6 fabricator locations 5987 | -6/Factory | Loaded intel: 4 scanalyzer locations 6048 | -6/Factory | Spotted B-75 Beast 6252 | -6/Factory | Central database locked down 6319 | -6/Factory | Lost 5 allies 6330 | -6/Factory | Search patrols dispatched 6449 | -6/Factory | Garrison activated, responded to threat 6497 | -6/Factory | Manually triggered Chute Trap 6497 | -6/Factory | Sucked down chute 6497 | -6/Factory | Entered Waste 6506 | -6/Waste | Spotted C-40 Crusher 6512 | -6/Waste | 1 allies followed down the chute 6512 | -6/Waste | EMP discharged 6514 | -6/Waste | Spotted C-40 Crusher 6547 | -6/Waste | Spotted C-40 Crusher 6564 | -6/Waste | Destroyed C-40 Crusher 6580 | -6/Waste | Crushed by Compactor (1 part destroyed, 1 dropped) 6610 | -6/Waste | Spotted C-40 Crusher 6612 | -6/Waste | EMP discharged 6612 | -6/Waste | System corruption reached 10% 6616 | -6/Waste | Spotted C-40 Crusher 6618 | -6/Waste | Spotted C-40 Crusher 6627 | -6/Waste | Discovered new exit (range 16) 6653 | -6/Waste | Entered Factory 6908 | -6/Factory | Build established: Construct 7353 | -6/Factory | Search patrols dispatched 7478 | -6/Factory | Entered Extension 7479 | -6/Extension | Identified exit to Cetus 8199 | -6/Extension | Spotted B-75 Beast 8247 | -6/Extension | Allies destroyed B-75 Beast 8248 | -6/Extension | Lost 3 parts (1p1u1w) 8300 | -6/Extension | Spotted B-75 Beast 8303 | -6/Extension | Build established: Commander-Construct 8307 | -6/Extension | Destroyed B-75 Beast 8376 | -6/Extension | Rescued a captive Derelict 8754 | -6/Extension | Lost 3 allies 8797 | -6/Extension | Disrupted transfer network 8835 | -6/Extension | Lost 5 allies 8870 | -6/Extension | Destroyed 9 combat bots 8878 | -6/Extension | First assault squad dispatched 9099 | -6/Extension | Build established: Construct 9156 | -6/Extension | Rescued a captive Derelict 9160 | -6/Extension | Rescued a captive Derelict 9177 | -6/Extension | Rescued a captive Derelict 9292 | -6/Extension | Rescued a captive Derelict 9293 | -6/Extension | Rescued a captive Derelict 9847 | -6/Extension | Entered Cetus 9847 | -6/Cetus | Accompanied by 1 ally 9869 | -6/Cetus | Spotted Cetus Guard 9870 | -6/Cetus | Spotted Cetus Guard 9870 | -6/Cetus | Destroyed Cetus Guard 9873 | -6/Cetus | Spotted Cetus Guard 9874 | -6/Cetus | Destroyed Cetus Guard 9881 | -6/Cetus | Allies destroyed Cetus Guard 9882 | -6/Cetus | Spotted Cetus Guard 9907 | -6/Cetus | Destroyed Cetus Guard 10099 | -6/Cetus | Discovered new exit (range 16) 10120 | -6/Cetus | Spotted Cetus Guard 10121 | -6/Cetus | Spotted Cetus Guard 10126 | -6/Cetus | Spotted Cetus Guard 10134 | -6/Cetus | Spotted Cetus Guard 10140 | -6/Cetus | Core integrity fell below 50% 10142 | -6/Cetus | Destroyed Cetus Guard 10179 | -6/Cetus | Destroyed Cetus Guard 10192 | -6/Cetus | Destroyed Cetus Guard 10221 | -6/Cetus | Destroyed Cetus Guard 10250 | -6/Cetus | Discovered exit to Factory (range 15) 10257 | -6/Cetus | Met Revision 17 10597 | -6/Cetus | Security sweep announced 10646 | -6/Cetus | Entered Archives 10829 | -6/Archives | Discovered exit to Factory (range 14) 10842 | -6/Archives | Discovered new exit (range 15) 10881 | -6/Archives | Build established: Scavenger-Construct 10934 | -6/Archives | Entered Hub_04(d) 11234 | -6/Hub_04(d) | Discovered exit to Factory (range 6) 11251 | -6/Hub_04(d) | Build established: Construct 11754 | -6/Hub_04(d) | Garrison activated, responded to threat 11787 | -6/Hub_04(d) | Core integrity fell below 20% 11798 | -6/Hub_04(d) | Lost 3 parts (1p1n1w) 11802 | -6/Hub_04(d) | Entered Factory 11802 | -5/Factory | Evolved 2 slots: Propulsion x1, Utility x1 12111 | -5/Factory | Central database locked down 12240 | -5/Factory | Discovered new exit (range 9) 12248 | -5/Factory | Identified exit to Upper Caves 12817 | -5/Factory | Discovered new exit (range 15) 13125 | -5/Factory | Discovered exit to Upper Caves (range 8) 13371 | -5/Factory | Entered Upper Caves 13782 | -5/Upper Caves | Identified exit to Upper Caves 13986 | -5/Upper Caves | Entered another Upper Caves area 14465 | -5/Upper Caves | Discovered new exit (range 9) 14478 | -5/Upper Caves | Identified exit to Warlord 14480 | -5/Upper Caves | Entered Warlord 14556 | -5/Warlord | System corruption cleaned by Quarantine Array 14772 | -5/Warlord | Warlord's base attacked by MAIN.C 14805 | -5/Warlord | Found Prototype Energy Gun 14808 | -5/Warlord | Found Prototype Energy Gun 14809 | -5/Warlord | Identified Vortex Shotgun (x2) 15122 | -5/Warlord | Warlord forces counterattacked 15280 | -5/Warlord | Met Warlord 15342 | -5/Warlord | Spotted Striker 15363 | -5/Warlord | Spotted Executioner 15414 | -5/Warlord | Lost 5 parts (2p2n1u) 15440 | -5/Warlord | Spotted Striker 15447 | -5/Warlord | Warlord base infiltrated, sounded retreat 15448 | -5/Warlord | Enhanced Grunt warped into view 15448 | -5/Warlord | Enhanced Grunt warped into view 15448 | -5/Warlord | Enhanced Grunt warped into view 15448 | -5/Warlord | Enhanced Demolisher warped into view 15448 | -5/Warlord | Enhanced Demolisher warped into view 15448 | -5/Warlord | Enhanced Demolisher warped into view 15448 | -5/Warlord | P-70 Sage assimilated allied PG-1UA(g) 15638 | -5/Warlord | Spotted Executioner 15652 | -5/Warlord | Discovered new exit (range 12) 15653 | -5/Warlord | Found Unknown Protection 15653 | -5/Warlord | P-70 Sage assimilated allied OO-VG3(g) 15668 | -5/Warlord | Identified exit to Proximity Caves 15672 | -5/Warlord | Spotted Executioner 15672 | -5/Warlord | Spotted Executioner 15674 | -5/Warlord | Entered Proximity Caves 15680 | -4/Proximity Caves | Lost 13 allies 15710 | -4/Proximity Caves | Attracted the attention of an 0b10 checkpoint 15746 | -4/Proximity Caves | Build established: Scavenger-Tank 16500 | -4/Proximity Caves | Learned Research security intel 16525 | -4/Proximity Caves | Build established: Scavenger-Mutant 16538 | -4/Proximity Caves | Spotted B-86 Titan 16680 | -4/Proximity Caves | Destroyed B-86 Titan 16687 | -4/Proximity Caves | Identified Hvy. Reflective Plating 16708 | -4/Proximity Caves | Lost 3 parts (1n2u) 16856 | -4/Proximity Caves | Discovered new exit (range 8) 16929 | -4/Proximity Caves | Entered Factory 16929 | -4/Factory | Evolved 2 slots: Utility x2 17036 | -4/Factory | Fabricated Enh. Nova Cannon (x2) 17400 | -4/Factory | Garrison activated, responded to threat 17470 | -4/Factory | Sucked down chute 17470 | -4/Factory | Entered Waste 17471 | -4/Waste | Met a frightened Derelict 17480 | -4/Waste | Spotted C-40 Crusher 17482 | -4/Waste | Spotted C-40 Crusher 17485 | -4/Waste | EMP discharged 17485 | -4/Waste | System corruption reached 10% 17486 | -4/Waste | Spotted C-40 Crusher 17494 | -4/Waste | Lost 9 parts (2p3n2u2w) 17494 | -4/Waste | Crushed by Compactor (1 part destroyed) 17495 | -4/Waste | Spotted C-40 Crusher 17499 | -4/Waste | Spotted C-40 Crusher 17501 | -4/Waste | Spotted C-40 Crusher 17514 | -4/Waste | Discovered new exit (range 13) 17519 | -4/Waste | Identified exit to Factory 17520 | -4/Waste | Entered Factory 17531 | -4/Factory | Found Imp. Powered Armor 17587 | -4/Factory | Found Quantum Capacitor 17717 | -4/Factory | Build established: Mutant 17924 | -4/Factory | Discovered new exit (range 5) 17924 | -4/Factory | Discovered new exit (range 9) 17927 | -4/Factory | Identified exit to Research 17968 | -4/Factory | Identified exit to Upper Caves 17997 | -4/Factory | Entered Upper Caves 18697 | -4/Upper Caves | Discovered new exit (range 7) 18728 | -4/Upper Caves | Identified exit to Upper Caves 18756 | -4/Upper Caves | Learned Research stockpile data 18813 | -4/Upper Caves | Entered another Upper Caves area 18862 | -4/Upper Caves | Discovered exit to Research (range 11) 18891 | -4/Upper Caves | Encountered a Warlord checkpoint 19264 | -4/Upper Caves | Attracted the attention of an 0b10 outpost 19369 | -4/Upper Caves | Lost 4 parts (1u3w) 19441 | -4/Upper Caves | Core integrity fell below 50% 19449 | -4/Upper Caves | Entered Research 19449 | -3/Research | Evolved 2 slots: Utility x2 19474 | -3/Research | Lost 5 parts (1n3u1w) 19649 | -3/Research | Revision forces began assault on 0b10 19685 | -3/Research | Met up with Revision 17++ 19924 | -3/Research | Spotted B-86 Titan 19956 | -3/Research | Build established: Scavenger-Gunner 19958 | -3/Research | Destroyed B-86 Titan 19973 | -3/Research | Lost 3 allies 20149 | -3/Research | Research terminal network offline 20327 | -3/Research | Found Prototype Device 20327 | -3/Research | Identified System Purifier 20386 | -3/Research | Build established: Scavenger-Skirmisher 20577 | -3/Research | Discovered new exit (range 7) 20607 | -3/Research | Identified exit to Research 20654 | -3/Research | Spotted Executioner 20654 | -3/Research | Spotted Executioner 20655 | -3/Research | Spotted Striker 20659 | -3/Research | Spotted Striker 20662 | -3/Research | Entered another Research area 20662 | -2/Research | Warlord forces began assault on 0b10 20662 | -2/Research | Evolved 2 slots: Utility x1, Weapon x1 20691 | -2/Research | Lost 5 allies 20743 | -2/Research | Met up with Warlord 20772 | -2/Research | Research machine network offline 20914 | -2/Research | Spotted Executioner 20919 | -2/Research | Spotted Striker 20920 | -2/Research | Spotted Striker 20949 | -2/Research | Discovered new exit (range 12) 21093 | -2/Research | Borebot progress halted 21259 | -2/Research | Spotted Striker 21263 | -2/Research | Spotted Striker 21278 | -2/Research | Destroyed Striker 21294 | -2/Research | Build established: Scavenger-Tank 21324 | -2/Research | Borebot progress halted 21454 | -2/Research | Destroyed Striker 21535 | -2/Research | Discovered new exit (range 14) 21614 | -2/Research | Spotted Striker 21637 | -2/Research | Destroyed Striker 21672 | -2/Research | Lost 6 allies 21791 | -2/Research | Borebot progress halted 21840 | -2/Research | Spotted 2B-4FG(L) 21868 | -2/Research | Lost 3 allies 21893 | -2/Research | Destroyed 2B-4FG(L) 21906 | -2/Research | Lost 3 parts (3u) 21971 | -2/Research | Lost 6 allies 22008 | -2/Research | Warlord destroyed during the assault 22090 | -2/Research | Spotted Executioner 22101 | -2/Research | Spotted Striker 22140 | -2/Research | Destroyed Striker 22175 | -2/Research | Discovered new exit (range 15) 22209 | -2/Research | Identified exit to Quarantine 22209 | -2/Research | Entered Quarantine 22243 | -2/Quarantine | Found Alien Energy Cannon 22245 | -2/Quarantine | Identified Core Cannon 22366 | -2/Quarantine | Build established: Scavenger-Skirmisher 22385 | -2/Quarantine | Destroyed 8 combat bots 22444 | -2/Quarantine | Spotted Fortress 22507 | -2/Quarantine | Discovered new exit (range 15) 22516 | -2/Quarantine | Discovered new exit (range 6) 22521 | -2/Quarantine | Identified exit to Protoforge 22522 | -2/Quarantine | Entered Protoforge 22536 | -2/Protoforge | Superfortress began startup sequence 22555 | -2/Protoforge | Spotted B-90 Cyclops 22557 | -2/Protoforge | Spotted Hotshot 22557 | -2/Protoforge | Spotted Hotshot 22558 | -2/Protoforge | Destroyed B-90 Cyclops 22558 | -2/Protoforge | Spotted Hotshot 22571 | -2/Protoforge | Destroyed Hotshot 22574 | -2/Protoforge | Spotted Hotshot 22576 | -2/Protoforge | Destroyed Hotshot 22604 | -2/Protoforge | Destroyed Hotshot 22612 | -2/Protoforge | Destroyed Hotshot 22613 | -2/Protoforge | Core integrity fell below 50% 22720 | -2/Protoforge | Build established: Skirmisher 22865 | -2/Protoforge | Additional patrols dispatched to research labs 22891 | -2/Protoforge | Found Prototype Launcher 22891 | -2/Protoforge | Identified Cep. Tiamat Rocket Array 22895 | -2/Protoforge | Found Prototype Launcher 22895 | -2/Protoforge | Identified Cep. Rapid Grenade Launcher 22898 | -2/Protoforge | Found Prototype Launcher 22898 | -2/Protoforge | Identified Cep. Smart ZDS 22902 | -2/Protoforge | Found Prototype Launcher 22902 | -2/Protoforge | Identified Cep. Tactical Fusion Warhead 22910 | -2/Protoforge | Found Prototype Launcher 22910 | -2/Protoforge | Identified Cep. EMP Blanket Launcher 22915 | -2/Protoforge | Spotted Immortal 22917 | -2/Protoforge | Spotted Immortal 22956 | -2/Protoforge | Spotted Decapitator 22956 | -2/Protoforge | Spotted Decapitator 22956 | -2/Protoforge | Spotted Decapitator 22990 | -2/Protoforge | Destroyed Immortal 23005 | -2/Protoforge | Found Prototype Device 23017 | -2/Protoforge | Destroyed Immortal 23022 | -2/Protoforge | First assault squad dispatched 23028 | -2/Protoforge | Spotted Immortal 23028 | -2/Protoforge | Spotted Immortal 23030 | -2/Protoforge | Core integrity fell below 20% 23030 | -2/Protoforge | Destroyed Decapitator 23033 | -2/Protoforge | Destroyed Decapitator 23035 | -2/Protoforge | Spotted Immortal 23036 | -2/Protoforge | Destroyed Decapitator 23038 | -2/Protoforge | Crushed by falling debris 23051 | -2/Protoforge | Identified Crosscalibrator 23069 | -2/Protoforge | Lost 3 parts (2u1w) 23118 | -2/Protoforge | Crushed by falling debris 23118 | -2/Protoforge | Smashed by cave-in Last Messages --------------- 23102_ P-80 Master resets Immortal, system corruption cleaned. 23103_ P-80 Master resets B-74 Champion, system corruption cleaned. 23107_ P-80 Master resets Y-72 Warden, system corruption cleaned. 23107_ P-80 Master resets G-73 Enforcer, system corruption cleaned. 23108_ N-04 Retriever collects Corrupted Phase Gun. 23109_ N-04 Retriever collects Com. Wheel. 23109_ N-04 Retriever collects Myomer Leg. 23109_ N-04 Retriever collects Corrupted Point Defense System. 23109_ N-04 Retriever collects Corrupted Antimatter Reactor. 23116_ The unstable cave ceiling collapses. 23116_ P-80 Master crushed by falling debris. 23118_ Quantum Reactor destroyed. 23118_ The unstable cave ceiling collapses. 23118_ Crushed by falling debris. 23118_ Adv. Heat Sink destroyed. 23118_ System corrupted by crushing effect (+5). 23118_ System Purifier destroyed. 23118_ System corrupted by crushing effect (+3). 23118_ Graviton Reactor destroyed. 23118_ System corrupted by crushing effect (+5). Map ----- +----------------------------------------------------+ | ?????????????????????????????????????????????????? | | ?????????????????????????????????????????????????? | | ??????????????????????????????????????????????? ?? | | ??????????????????????????????????????????????# ?? | | ?????????????????????????????????????????????? ??? | | ?????????????????????????????????????????????? ??? | | ?????????????????????????????????????????????? ??? | | ????????????????????????????????????????????## ??? | | ????????????????????????????????????????????# ??? | | ????????????????????????????????????????????# #??? | | ????????????????????????????????????????????# #??? | | ??????????????????????????????????????????###"#??? | | ??????????????????????????????????????????# "#### | | ???????????????????????????????????###????# | | ?????????????????????????????????### ###### | | ?????????????????????????????????# " | | ????????????????????????????????## #"###### ##### | | ???????????????????????????????##"##" ""## ## # | | ??????????????????????????????######" ]## %# " | | ?????????????????????????????## ##?#"] ## ### | | ????????????????????????????##p##??#"] ] %% | | ???????????????????????????## ##??##" = | | ??????????????????????????## ##???#" ] * | | ?????????????????????????## ##????##" =%! % | | ????????????????????????## ##??????#" ! ! | | ???????????????????????##@##???????#" | | ??????????????????????## ##????????#" | | ?????????????????????## ##?????????#"] # | | ????????????????????## ##??????????#"] # | | ????#################;##???????????#" """# | | ????# ##????????????##"#### | | ????# """ """ """ #??????????????# ?#" " " | | ????# """ """ """ #??????????????# ?#" """"" "" | | ????# """ """ """ #??????????????# ?########### | | ????# #???????????????????????????? | | ????# """ """ """ #???????????????????????????? | | ????# """ """ """ #???????????????????????????? | | ????# """ """ """ #???????????????????????????? | | ????# #???????????????????????????? | | ????#"#####+#+########???????????????????????????? | | #####"##### +?????????????????????????????????? | | # #?????????????????????????????????? | | # #?????????????????????????????????? | | # #"###### +?????????????????????????????????? | | # # #????# #?????????????????????????????????? | | # "##????# ??????????????????????????????????? | | # "#?????# #?????????????????????????????????? | | # "#?????? #?????????????????????????????????? | | =!#?????? #?????????????????????????????????? | | [% #?????? #?????????????????????????????????? | +----------------------------------------------------+ Best States ------------- Heat Dissipation 118 Energy Generation 49 Energy Capacity 629 Matter Stores 545 Matter Capacity 700 Sight Range 22 Robot Scan Range 18 Terrain Scan Range 20 Terrain Scan Density 210 Additional Mass Support 12 Base Temperature (-) 200 Armor Coverage 600 Resistance: TH 25 Resistance: EM 25 Utility Shielding 66 Weapon Shielding 90 Phase Shifting 15 Evasion (%) 85 Targeting Accuracy 8 Melee Accuracy 6 Core Analysis 6 Recoil Reduction 4 Energy Filtering 30 Salvage Targeting 5 Defensive Hacking 12 Authchip Count 2 Item Schematics ----------------- Imp. Datajack | -6/Factory | Scanalyzed Robot Schematics ------------------ None Fabricated ------------ Enh. Nova Cannon | x2 | -4/Factory | Preloaded Repaired ---------- Nothing Studied --------- Mace | -8/Materials | Hacked VSS Leg | -6/Factory | Hacked Carbon-fiber Leg | -6/Factory | Hacked Imp. Grenade Launcher | -6/Factory | Hacked Med. Armored Exoskeleton | -3/Research | Hacked Alien Tech Used ----------------- Core Cannon Achievements -------------- None Challenges ------------ None Game ------ Seed TerrorLauncherScrap Manual? 0 Play Time 04:36:25 Cumulative 496.5 hours Start 2025.12.31 @ 14:48:17 End 2026.01.01 @ 18:13:56 Sessions 7 Manual Loads 0 Difficulty Rogue Special Mode None Game No. 199 Rogue 126 Adventurer 68 Explorer 5 Win Type - Total 39 Types 20/3/4/5/3/0/1/1/0/2 Lore% 84 Gallery% 80 Achievement% 65 Wizard Run 0 Options --------- Layout 0 ASCII 0 Keyboard 0 Movement Numpad Keybinds 0 Fullscreen 1 Font 24/Smallcaps Map View 76x50 Zoom Use 0% Tactical HUD 1 Map Filters NONE Filters NONE Steam 1 RUN: aec291c3-f631-417d-8103-7eddda81f420